bitfinex/quotes_ETHUSD_20250720
["timestamp","ask_amount","ask_price","bid_price","bid_amount"]
[1753045372892,8.83141297,3732.2,3732.1,0.02]
[1753045375595,4.731,3732.2,3732.1,0.02]
[1753045375785,4.728,3732.2,3732.1,0.02]
[1753045376892,4.178,3732.2,3732.1,0.021]
[1753045377058,0.55,3732.3,3732.1,0.021]
[1753045377258,2.81284686,3732.4,3732.1,0.021]
[1753045377259,4.178,3732.2,3732.1,0.021]
[1753045377659,0.55,3732.3,3732.1,0.021]
[1753045377870,4.177,3732.2,3732.1,0.021]
[1753045380165,5.21306,3732.2,3732.1,0.021]
[1753045380508,8.52934481,3732.2,3732.1,0.021]
[1753045380873,8.32534481,3732.2,3732.1,0.021]
[1753045381212,11.32534481,3732.2,3732.1,0.021]
[1753045381381,11.52734481,3732.2,3732.1,0.021]
[1753045384332,3.2295284,3732.0,3731.9,0.001]
[1753045384623,9.1055116,3732.0,3731.9,0.001]
[1753045385123,9.5404116,3732.0,3731.9,0.001]
[1753045385476,10.2424116,3732.0,3731.9,0.001]
[1753045386378,10.2394116,3732.0,3731.9,0.001]
[1753045386724,2.6795284,3732.0,3731.9,0.001]
[1753045386893,7.2854284,3732.0,3731.9,0.001]
[1753045387091,8.0374284,3732.0,3731.9,1e-08]
[1753045387401,3.8664284,3732.0,3731.9,1e-08]
[1753045387616,8.0464284,3732.0,3731.9,1e-08]
[1753045387903,9.11900972,3732.0,3731.9,1e-08]
[1753045388236,6.8605284,3732.0,3731.9,1e-08]
[1753045388577,7.8454284,3732.0,3731.9,1e-08]
[1753045393819,8.0474284,3732.0,3731.9,1e-08]
[1753045396279,3.2296002,3731.9,3731.8,1e-08]
[1753045396484,19.36464154,3731.9,3731.8,1e-08]
[1753045396786,19.56664154,3731.9,3731.8,1e-08]
[1753045400348,3.43210291,3731.2,3731.1,1e-08]
[1753045400649,7.60410291,3731.2,3731.1,1e-08]
[1753045400948,8.03900291,3731.2,3731.1,1e-08]
[1753045401148,8.78570137,3731.2,3731.1,1e-08]
[1753045401718,11.78570137,3731.2,3731.1,1e-08]
[1753045401915,0.55,3729.6,3728.9,0.7871]
[1753045402145,4.179,3729.5,3728.9,0.7871]
[1753045402349,0.202,3730.3,3729.2,0.4416]
[1753045402350,0.1336,3729.4,3729.2,0.4416]
[1753045402571,0.1336,3729.8,3729.3,0.7871]
[1753045402744,0.1336,3729.8,3729.2,0.5752]
[1753045402745,0.1336,3729.8,3729.5,0.7871]
[1753045402948,4.182,3729.8,3729.6,0.5752]
[1753045403256,4.182,3730.1,3729.8,0.7871]
[1753045403420,4.182,3730.2,3729.9,0.4416]
[1753045403615,4.183,3730.2,3730.0,0.7726]
[1753045403843,4.3156,3730.5,3730.1,0.4416]
[1753045404043,4.182,3730.5,3730.0,0.9062]
[1753045404355,4.182,3730.5,3730.2,0.4416]
[1753045404655,0.1336,3730.7,3730.3,0.4416]
[1753045404866,4.182,3730.6,3730.0,1.3478]
[1753045405823,4.182,3730.6,3730.0,0.9062]
[1753045406132,4.182,3730.6,3730.2,0.7726]
[1753045406459,4.182,3730.6,3730.3,0.4416]
[1753045406662,4.182,3730.6,3730.4,0.4416]
[1753045406846,0.1336,3730.7,3730.5,0.4416]
[1753045407052,0.1336,3730.7,3730.6,0.7726]
[1753045407571,4.3116,3730.9,3730.6,1.2142]
[1753045408364,4.3116,3730.9,3730.6,0.7726]
[1753045408573,2.6810251,3730.0,3729.2,0.7726]
[1753045408858,2.6811934,3729.7,3729.2,0.7726]
[1753045409084,4.733,3729.9,3729.2,0.7726]
[1753045409218,2.68130755,3729.6,3729.2,0.7726]
[1753045409605,4.183,3729.9,3729.4,0.8058]
[1753045409724,4.183,3729.9,3729.5,0.4397]
[1753045409922,4.183,3729.9,3729.6,0.4397]
[1753045410247,4.183,3729.9,3729.7,0.4397]
[1753045411023,0.55,3730.5,3729.9,0.8058]
[1753045411288,4.181,3730.4,3730.0,0.4397]
[1753045411490,0.3,3731.1,3730.0,0.4397]
[1753045411491,4.181,3730.6,3730.0,0.4397]
[1753045411792,4.181,3730.7,3730.1,0.8058]
[1753045412942,6.86146996,3730.7,3730.1,0.8058]
[1753045413471,2.68062362,3730.5,3730.1,0.8058]
[1753045413784,2.68055724,3730.6,3730.1,0.8058]
[1753045414568,2.68056223,3730.6,3730.1,1.2455]
[1753045415082,6.8614819,3730.7,3730.2,0.4397]
[1753045415799,2.68054102,3730.6,3730.2,0.4397]
[1753045416099,2.68054102,3730.6,3730.1,0.8058]
[1753045416271,2.68054102,3730.6,3730.1,1.2455]
[1753045416471,6.86147552,3730.7,3730.1,1.2455]
[1753045416898,6.86147552,3730.7,3730.1,1.2355]
[1753045417094,6.85539861,3730.8,3730.2,0.4397]
[1753045417390,4.175,3730.7,3730.2,0.4397]
[1753045417692,4.175,3730.7,3730.2,0.83135172]
[1753045418003,4.175,3730.7,3730.2,0.4397]
[1753045418290,4.175,3730.7,3730.3,0.4397]
[1753045418468,4.175,3730.7,3730.4,0.4397]
[1753045418667,4.175,3730.7,3730.5,0.4397]
[1753045419655,0.1336,3730.9,3730.2,0.1336]
[1753045419859,4.172,3730.8,3730.6,1.2177]
[1753045421161,4.17,3730.8,3730.6,1.2177]
[1753045421925,4.17,3730.8,3730.6,0.778]
[1753045423978,0.1336,3731.1,3730.6,0.778]
[1753045424184,0.1336,3731.5,3731.0,0.8145]
[1753045424412,4.166,3731.4,3731.1,0.4397]
[1753045424618,0.02,3731.9,3731.0,0.8145]
[1753045424823,4.2996,3731.8,3731.2,0.1336]
[1753045425187,6.97927674,3731.8,3731.2,0.1336]
[1753045426118,2.68017474,3731.1,3730.4,0.8145]
[1753045426319,4.165,3731.0,3730.4,0.8145]
[1753045427220,2.68041132,3730.8,3730.4,0.8145]
[1753045427525,2.68080941,3730.3,3730.1,0.001]
[1753045427721,4.166,3730.4,3730.1,0.001]
[1753045428386,6.84668418,3730.4,3730.1,0.001]
[1753045428810,4.166,3730.4,3730.1,0.001]
[1753045429219,6.84667925,3730.4,3730.1,0.001]
[1753045429413,4.166,3730.4,3730.1,0.001]
[1753045429613,0.4298,3730.3,3730.1,0.001]
[1753045430150,4.7946,3730.4,3730.1,0.001]
[1753045430328,3.1106214,3730.2,3730.1,0.001]
[1753045431095,2.6808214,3730.2,3730.1,0.001]
[1753045431296,6.8438214,3730.2,3730.1,0.001]
[1753045431614,8.26773446,3730.2,3730.1,0.001]
[1753045432621,4.10473446,3730.2,3730.1,0.001]
[1753045432821,8.26573446,3730.2,3730.1,0.001]
[1753045433907,9.02773446,3730.2,3730.1,1e-08]
[1753045434417,12.02773446,3730.2,3730.1,1e-08]
[1753045435923,9.02973446,3730.2,3730.1,1e-08]
[1753045437730,4.86673446,3730.2,3730.1,1e-08]
[1753045437932,6.8438214,3730.2,3730.1,1e-08]
[1753045438347,2.6808214,3730.2,3730.1,1e-08]
[1753045438663,7.3948214,3730.2,3730.1,1e-08]
[1753045439256,3.2308214,3730.2,3730.1,1e-08]
[1753045439459,7.8295214,3730.2,3730.1,1e-08]
[1753045441229,2.6808214,3730.2,3730.1,1e-08]
[1753045441429,6.8408214,3730.2,3730.1,1e-08]
[1753045441773,2.68077335,3730.3,3730.1,1e-08]
[1753045441949,6.9744214,3730.2,3730.1,1e-08]
[1753045442266,0.1336,3730.2,3730.1,1e-08]
[1753045442476,4.16,3730.2,3730.1,0.42800001]
[1753045442700,4.16,3730.2,3730.1,1e-08]
[1753045444183,8.52295689,3730.2,3730.1,1e-08]
[1753045445570,8.08825689,3730.2,3730.1,1e-08]
[1753045446773,7.53825689,3730.2,3730.1,1e-08]
[1753045446951,6.8368214,3730.2,3730.1,1e-08]
[1753045447152,7.2715214,3730.2,3730.1,1e-08]
[1753045447784,2.6808214,3730.2,3730.1,1e-08]
[1753045447983,6.8368214,3730.2,3730.1,1e-08]
[1753045448286,2.6808214,3730.2,3730.1,1e-08]
[1753045448489,6.8358214,3730.2,3730.1,1e-08]
[1753045449905,4.155,3730.2,3730.1,1e-08]
[1753045450200,6.8358214,3730.2,3730.1,1e-08]
[1753045450985,7.8205214,3730.2,3730.1,1e-08]
[1753045451186,8.88400149,3730.2,3730.1,1e-08]
[1753045451495,8.44930149,3730.2,3730.1,1e-08]
[1753045453702,4.153,3730.2,3730.1,1e-08]
[1753045454001,2.81439826,3730.3,3730.1,1e-08]
[1753045454002,0.1336,3730.3,3730.1,1e-08]
[1753045454201,4.151,3730.2,3730.1,1e-08]
[1753045454865,6.8318214,3730.2,3730.1,1e-08]
[1753045455262,2.6808214,3730.2,3730.1,1e-08]
[1753045455468,6.8318214,3730.2,3730.1,1e-08]
[1753045455703,8.34643224,3730.2,3730.1,1e-08]
[1753045456006,8.78113224,3730.2,3730.1,1e-08]
[1753045456385,8.99313224,3730.2,3730.1,1e-08]
[1753045461208,0.212,3730.9,3730.1,1e-08]
[1753045461508,2.6808214,3730.2,3730.1,1e-08]
[1753045461717,7.8155214,3730.2,3730.1,1e-08]
[1753045462212,8.0275214,3730.2,3730.1,1e-08]
[1753045463735,7.8155214,3730.2,3730.1,1e-08]
[1753045463886,8.86514749,3730.2,3730.1,1e-08]
[1753045465488,8.86714749,3730.2,3730.1,1e-08]
[1753045467154,11.86714749,3730.2,3730.1,1e-08]
[1753045469834,12.02582609,3730.2,3728.8,0.09744763]
[1753045470141,3.23175601,3728.9,3728.8,0.09744763]
[1753045470433,0.55,3728.8,3728.2,0.7564]
[1753045470635,4.15,3728.7,3728.2,0.7564]
[1753045470836,3.0,3729.9,3728.4,0.7564]
[1753045470837,4.15,3728.6,3728.4,0.7564]
[1753045471133,4.15,3728.6,3728.5,0.4737]
[1753045471292,4.15,3728.6,3728.5,0.7564]
[1753045471496,6.83197178,3728.6,3728.5,0.7564]
[1753045471718,9.96557178,3728.6,3728.5,0.7564]
[1753045471937,3.1336,3728.6,3728.5,0.7564]
[1753045472237,7.15,3728.6,3728.5,0.89]
[1753045472397,7.15,3728.6,3728.5,0.7564]
[1753045472594,7.15,3728.6,3728.5,1.2301]
[1753045472809,4.15,3728.6,3728.5,1.36647]
[1753045473022,4.15,3728.6,3728.5,0.77687]
[1753045473236,4.15,3728.6,3728.5,0.6405]
[1753045473734,4.15,3728.6,3728.5,0.1668]
[1753045473897,4.15,3728.6,3728.5,0.6405]
[1753045477139,1.2359,3730.1,3728.6,0.7796]
[1753045477316,0.1336,3729.4,3728.7,1.03546486]
[1753045477515,0.002,3730.2,3729.1,0.1336]
[1753045477705,0.1336,3729.9,3729.3,0.1336]
[1753045477906,4.15,3729.8,3729.3,0.1336]
[1753045478103,4.15,3729.8,3729.3,0.6073]
[1753045478543,4.15,3729.8,3728.0,0.004]
[1753045478544,0.7807,3729.3,3728.0,0.004]
[1753045478716,0.55,3728.2,3728.0,0.004]
[1753045479042,4.212,3728.3,3728.1,0.7996]
[1753045479242,4.212,3728.3,3728.2,0.4737]
[1753045479728,4.212,3728.3,3728.1,0.7996]
[1753045480342,2.68225953,3728.2,3728.1,0.7996]
[1753045480514,7.02780699,3728.3,3728.1,0.7996]
[1753045480707,4.3456,3728.3,3728.1,0.7996]
[1753045480922,1.2568,3729.5,3728.2,0.4737]
[1753045481121,0.1336,3729.1,3728.2,0.6073]
[1753045481320,0.16065113,3729.1,3728.5,0.1336]
[1753045481519,4.213,3729.0,3728.5,0.1336]
[1753045482011,1.2568,3729.5,3728.7,0.8165]
[1753045482012,2.68154416,3729.2,3728.7,0.8165]
[1753045482211,4.213,3729.1,3728.7,0.9501]
[1753045483848,2.81509402,3729.3,3728.8,0.4737]
[1753045483849,0.1336,3729.3,3728.8,0.4737]
[1753045484030,4.212,3729.4,3728.9,0.74968]
[1753045484347,4.21,3729.5,3729.0,0.4737]
[1753045484650,2.68146837,3729.3,3728.7,0.8165]
[1753045484956,2.68163117,3729.1,3728.7,0.9501]
[1753045485311,6.89156403,3729.2,3728.7,0.9501]
[1753045486246,2.68161306,3729.1,3728.7,0.9501]
[1753045487020,6.89156498,3729.2,3728.7,0.9501]
[1753045487354,4.21,3729.2,3728.7,0.9501]
[1753045487557,0.002,3729.1,3728.7,0.9501]
[1753045488634,2.68361256,3729.1,3728.7,0.9501]
[1753045488954,2.6816907,3729.0,3728.7,0.9501]
[1753045489659,2.6836379,3729.1,3728.7,0.9501]
[1753045490220,2.68182793,3728.8,3728.7,0.9501]
[1753045490422,0.02705113,3729.0,3728.7,0.9501]
[1753045490636,2.68181901,3728.9,3728.7,0.9501]
[1753045490936,4.205,3729.1,3728.7,0.9501]
[1753045491134,6.88663246,3729.1,3728.7,0.9501]
[1753045491341,6.88464216,3729.1,3728.7,0.9501]
[1753045492360,4.203,3729.1,3728.7,0.9501]
[1753045492798,0.002,3729.1,3729.0,0.2]
[1753045493061,0.002,3729.1,3729.0,0.8073]
[1753045493666,0.002,3729.1,3729.0,3.48898409]
[1753045493858,0.002,3729.1,3729.0,7.27430093]
[1753045494060,0.002,3729.1,3729.0,7.24748409]
[1753045494245,0.002,3729.1,3729.0,8.25465714]
[1753045494964,3.23361218,3729.1,3729.0,0.2]
[1753045495274,4.48751218,3729.1,3729.0,0.2]
[1753045499777,3.13881218,3729.1,3729.0,0.2]
[1753045500355,3.16586331,3729.1,3729.0,0.2]
[1753045500976,3.71586331,3729.1,3729.0,0.2]
[1753045501157,4.85556258,3729.1,3729.0,0.2]
[1753045502273,4.82851145,3729.1,3729.0,0.2]
[1753045503042,5.62241145,3729.1,3729.0,0.2]
[1753045504176,9.83041145,3729.1,3729.0,0.2]
[1753045504780,8.03131145,3729.1,3729.0,0.2]
[1753045504967,6.89161218,3729.1,3729.0,0.2]
[1753045505168,6.89061218,3729.1,3729.0,0.2]
[1753045505391,7.02421218,3729.1,3729.0,0.2]
[1753045506103,0.1356,3729.1,3729.0,0.2]
[1753045506253,7.02421218,3729.1,3729.0,0.2]
[1753045507291,4.3426,3729.1,3729.0,0.2]
[1753045507506,0.002,3729.1,3729.0,0.2]
[1753045507702,0.002,3729.1,3729.0,0.6511]
[1753045507854,0.002,3729.1,3729.0,1.89585842]
[1753045508050,0.002,3729.1,3729.0,1.4674]
[1753045508959,0.002,3729.1,3729.0,7.14908409]
[1753045511069,0.002,3729.3,3729.2,2.68154027]
[1753045511267,0.002,3729.3,3729.2,6.52465567]
[1753045511467,0.002,3729.3,3729.2,7.08254027]
[1753045511693,0.002,3729.3,3729.2,8.49916271]
[1753045512214,0.002,3730.2,3729.4,0.7941]
[1753045512411,0.002,3730.2,3730.1,0.7941]
[1753045512617,0.002,3730.2,3730.1,3.60859327]
[1753045512823,0.002,3730.2,3730.1,4.05969327]
[1753045513020,0.002,3730.2,3730.1,4.73376503]
[1753045513582,0.002,3730.2,3730.1,7.73376503]
[1753045515313,0.002,3730.2,3730.1,18.81000803]
[1753045515503,0.002,3730.2,3730.1,15.04621303]
[1753045515721,0.002,3730.2,3730.1,13.07304103]
[1753045516212,0.02,3732.9,3732.5,6.47326945]
[1753045516584,0.02,3732.9,3732.5,6.92436945]
[1753045516806,0.02,3732.9,3732.7,5.6790259]
[1753045517006,0.02,3732.9,3732.7,5.70581615]
[1753045517318,0.02,3732.9,3732.7,6.21711362]
[1753045517482,0.02,3732.9,3732.7,7.57914851]
[1753045517682,0.02,3732.9,3732.7,8.34764851]
[1753045517927,0.02,3732.9,3732.7,8.34750588]
[1753045518085,0.002,3733.2,3733.1,3.44723884]
[1753045518283,0.002,3733.2,3733.1,6.47402622]
[1753045518492,0.002,3733.2,3733.1,8.32184675]
[1753045519096,2.6778865,3734.3,3733.2,5.67866709]
[1753045519304,2.6778865,3734.3,3733.2,6.12976709]
[1753045519531,2.67788157,3734.3,3733.2,6.16951835]
[1753045519690,2.67789031,3734.3,3733.2,3.16951835]
[1753045519895,0.456,3734.4,3733.2,0.03975126]
[1753045519896,0.002,3734.4,3733.2,0.03975126]
[1753045520091,3.13459534,3733.3,3733.2,0.03975126]
[1753045520336,3.79665283,3733.3,3733.2,0.03975126]
[1753045520493,4.37370396,3733.3,3733.2,0.03975126]
[1753045521122,11.63336891,3733.3,3733.2,0.03975126]
[1753045521340,11.60631778,3733.3,3733.2,0.03975126]
[1753045522337,12.4612141,3733.3,3733.2,0.03975126]
[1753045522633,11.60631778,3733.3,3733.2,0.03975126]
[1753045523031,2.67944939,3732.2,3731.7,0.7685]
[1753045523231,2.6793052,3732.4,3731.7,0.7685]
[1753045523592,2.67931955,3732.3,3731.7,0.7685]
[1753045523996,0.02705113,3732.5,3731.7,0.7685]
[1753045524208,2.67953502,3732.0,3731.7,0.7685]
[1753045524444,3.22906971,3732.7,3731.3,3.00917652]
[1753045524445,0.02705113,3732.1,3731.3,0.76787652]
[1753045524650,2.6796002,3731.9,3731.3,0.76787652]
[1753045524818,2.67995926,3731.4,3731.3,0.00917652]
[1753045525414,3.13395926,3731.4,3731.3,0.00917652]
[1753045526120,2.67995926,3731.4,3731.3,0.00917652]
[1753045527642,2.67990592,3731.5,3731.3,0.00917652]
[1753045527806,2.67995926,3731.4,3731.3,0.00917652]
[1753045528351,0.8055,3732.4,3731.3,0.00917652]
[1753045528557,0.02705113,3732.3,3731.3,0.61657652]
[1753045528712,2.67972561,3731.8,3731.6,0.1336]
[1753045529046,2.67974381,3731.7,3731.6,0.1336]
[1753045529426,2.67969399,3731.8,3731.6,0.1336]
[1753045529746,2.67962374,3731.9,3731.6,0.1336]
[1753045530111,2.6796912,3731.8,3731.6,0.1336]
[1753045530459,3.25975102,3732.2,3731.6,0.1336]
[1753045530661,2.67951234,3732.1,3731.6,0.1336]
[1753045531040,2.67951234,3732.1,3731.7,0.813]
[1753045531238,2.67946336,3732.1,3731.7,0.813]
[1753045531441,2.67945674,3732.1,3731.7,0.813]
[1753045533468,2.6793961,3732.2,3731.7,0.813]
[1753045533670,0.55,3732.3,3731.7,0.813]
[1753045533966,2.67947471,3732.1,3731.7,0.813]
[1753045534136,3.22933975,3732.3,3731.7,0.813]
[1753045534466,2.67938481,3732.2,3731.7,0.813]
[1753045534848,2.67958778,3732.0,3731.7,0.813]
[1753045535360,2.67964847,3731.9,3731.7,0.813]
[1753045535556,2.679672,3731.8,3731.7,0.813]
[1753045536071,2.67957285,3732.0,3731.7,0.813]
[1753045536575,2.67955381,3732.0,3731.7,0.813]
[1753045536757,0.55,3732.3,3731.7,0.813]
[1753045537074,2.67950122,3732.1,3731.7,0.813]
[1753045537270,2.67958652,3732.0,3731.7,0.813]
[1753045537468,0.55,3732.3,3731.7,0.813]
[1753045537982,2.67960439,3731.9,3731.7,0.813]
[1753045539248,2.67961312,3731.9,3731.7,0.813]
[1753045539452,2.67955549,3732.0,3731.7,0.813]
[1753045539854,2.67950409,3732.1,3731.7,0.813]
[1753045540471,2.67950409,3732.1,3731.8,0.04707389]
[1753045540673,2.81288377,3732.4,3731.8,0.04707389]
[1753045540876,0.1336,3732.4,3731.9,0.1336]
[1753045541375,2.6793949,3732.2,3731.9,0.18122822]
[1753045541576,2.67946076,3732.1,3731.9,0.18122822]
[1753045541873,2.67938893,3732.2,3731.9,0.18122822]
[1753045542071,0.5303,3732.4,3731.9,0.18122822]
[1753045542272,2.6795284,3732.0,3731.9,0.18122822]
[1753045542575,2.67947606,3732.1,3731.9,0.18122822]
[1753045542788,0.4467,3732.3,3731.9,0.18122822]
[1753045542950,0.4467,3732.2,3731.9,0.18122822]
[1753045543281,3.12621449,3732.1,3731.9,0.1336]
[1753045543639,0.02705113,3732.3,3731.9,0.1336]
[1753045543881,2.67938481,3732.2,3731.9,0.1336]
[1753045544063,3.12602792,3732.3,3731.9,0.1336]
[1753045545178,0.4467,3732.3,3731.9,0.1336]
[1753045545356,2.67925334,3732.4,3731.9,0.1336]
[1753045545357,2.67924613,3732.4,3731.9,0.1336]
[1753045545756,3.12594613,3732.4,3731.9,0.1336]
[1753045546072,2.67924613,3732.4,3731.9,0.17752595]
[1753045546457,3.12594613,3732.4,3731.9,0.17752595]
[1753045546655,0.1336,3732.6,3731.9,0.17752595]
[1753045546858,4.6307,3732.8,3732.2,0.1336]
[1753045547069,2.67914582,3732.6,3732.2,0.1336]
[1753045547382,2.67905086,3732.7,3732.2,0.1336]
[1753045547756,2.67902919,3732.7,3732.2,0.1336]
[1753045547981,3.12567368,3732.8,3732.2,0.1336]
[1753045548148,0.4467,3732.8,3732.2,0.1336]
[1753045548348,3.12565894,3732.8,3732.2,0.1336]
[1753045548902,2.67904796,3732.7,3732.2,0.1336]
[1753045549750,3.12574796,3732.7,3732.2,0.1336]
[1753045550152,2.67910744,3732.6,3732.2,0.1336]
[1753045550352,3.12575573,3732.7,3732.2,0.1336]
[1753045550580,0.4467,3732.7,3732.2,0.1336]
[1753045551082,3.12573226,3732.7,3732.2,0.1336]
[1753045552366,2.67910322,3732.6,3732.2,0.1336]
[1753045552768,0.4467,3732.7,3732.2,0.1336]
[1753045552982,3.12573323,3732.7,3732.2,0.1336]
[1753045553305,3.12573323,3732.7,3732.3,0.04232363]
[1753045553509,2.67911029,3732.6,3732.3,0.04232363]
[1753045553688,2.67917423,3732.5,3732.3,0.04232363]
[1753045553884,2.67911652,3732.6,3732.3,0.04232363]
[1753045554211,3.12575604,3732.7,3732.3,0.04232363]
[1753045555112,3.12573021,3732.7,3732.4,0.7586]
[1753045555488,3.12572843,3732.7,3732.4,0.80302918]
[1753045555686,0.4467,3732.7,3732.4,0.80302918]
[1753045555888,3.12575287,3732.7,3732.4,0.80302918]
[1753045556110,2.67910616,3732.6,3732.4,0.80302918]
[1753045556301,3.12573744,3732.7,3732.4,0.80302918]
[1753045556504,2.67909988,3732.6,3732.4,0.80302918]
[1753045556729,2.67909988,3732.6,3732.4,0.04442918]
[1753045556730,3.22916945,3732.5,3732.4,0.04442918]
[1753045556888,8.68042058,3732.5,3732.4,0.04442918]
[1753045557100,8.65336945,3732.5,3732.4,0.04442918]
[1753045559718,2.679672,3731.8,3731.7,0.1336]
[1753045560808,2.67962677,3731.9,3731.7,0.1336]
[1753045561305,0.4714,3732.0,3731.7,0.1336]
[1753045561504,2.67952796,3732.1,3731.7,0.1336]
[1753045561834,2.67948207,3732.1,3731.7,0.1336]
[1753045562209,7.31771901,3732.3,3731.7,0.1336]
[1753045562412,2.67960255,3731.9,3731.7,0.1336]
[1753045563309,2.679672,3731.8,3731.7,0.1336]
[1753045563516,0.02705113,3732.2,3731.7,0.1336]
[1753045563716,2.67954493,3732.0,3731.7,0.1336]
[1753045564028,2.67948016,3732.1,3731.7,0.1336]
[1753045564257,0.002,3733.4,3731.8,1.26479672]
[1753045564532,0.605,3733.0,3732.1,0.1336]
[1753045564704,0.605,3733.0,3732.5,0.1336]
[1753045564904,3.28382302,3733.0,3732.5,0.1336]
[1753045565106,2.68088547,3732.9,3732.5,0.1336]
[1753045565426,3.15042026,3732.8,3732.5,0.1336]
[1753045565744,2.67909767,3732.6,3732.5,0.1336]
[1753045565949,2.67909767,3732.6,3732.3,0.7662]
[1753045565950,2.67916457,3732.6,3731.7,0.8004]
[1753045566135,2.67916457,3732.6,3732.3,0.1336]
[1753045566638,0.4714,3732.5,3732.3,0.1336]
[1753045566834,0.02705113,3732.7,3732.3,0.1336]
[1753045566835,2.70608157,3732.7,3732.3,0.1336]
[1753045567138,0.02705113,3732.7,3732.3,0.1336]
[1753045567315,0.4714,3732.7,3732.3,0.1336]
[1753045567935,3.15043228,3732.7,3732.3,0.1336]
[1753045568171,2.67917222,3732.5,3732.3,0.1336]
[1753045568373,3.23091,3732.9,3732.4,0.757]
[1753045568667,3.70229856,3732.9,3732.4,0.757]
[1753045568829,1.0234,3732.9,3732.4,0.757]
[1753045569730,0.002,3732.9,3732.4,3.43623412]
[1753045569930,0.002,3732.9,3732.5,3.15905498]
[1753045570126,0.002,3732.9,3732.6,2.67903603]
[1753045570372,0.002,3732.9,3732.8,6.50265413]
[1753045570576,0.002,3732.9,3732.8,6.63625413]
[1753045570732,1e-08,3732.9,3732.8,26.57545613]
[1753045570933,0.002,3733.2,3732.8,26.57545613]
[1753045570934,0.002,3733.2,3733.1,6.50243884]
[1753045571351,0.002,3733.2,3733.1,7.10783884]
[1753045574747,0.002,3733.2,3733.1,33.76616684]
[1753045574953,0.002,3733.2,3733.1,23.87246304]
[1753045575267,0.002,3733.3,3733.2,33.90291509]
[1753045575449,0.002,3733.3,3733.2,28.07347322]
[1753045575849,0.002,3733.3,3733.2,22.98636322]
[1753045576371,0.002,3733.3,3733.2,9.58920102]
[1753045576576,0.002,3733.3,3733.2,13.37245009]
[1753045576787,0.002,3736.2,3734.7,0.8112]
[1753045576936,0.4734,3736.2,3735.1,2.6772339]
[1753045577135,0.4734,3736.2,3735.3,2.6771559]
[1753045577381,0.4734,3736.2,3735.6,0.8112]
[1753045577549,0.002,3736.2,3735.6,4.188]
[1753045577878,0.002,3736.2,3735.6,11.42171559]
[1753045578085,0.002,3736.2,3735.6,11.39494613]
[1753045578263,0.002,3736.2,3735.6,11.86674613]
[1753045580339,0.002,3736.2,3735.6,0.8112]
[1753045580340,0.4734,3736.2,3735.6,0.8112]
[1753045580592,0.002,3736.2,3735.6,4.185]
[1753045580780,0.4734,3735.7,3735.6,4.185]
[1753045581751,0.4734,3735.7,3735.6,4.184]
[1753045581940,0.4734,3735.7,3735.6,4.183]
[1753045582577,0.4734,3735.7,3735.4,4.183]
[1753045582759,0.4734,3735.7,3733.2,2.67865562]
[1753045582760,0.55,3735.5,3733.7,0.8082]
[1753045582960,0.4734,3735.7,3733.7,0.8082]
[1753045582962,2.67773906,3734.5,3733.7,0.8082]
[1753045583178,3.22723281,3735.2,3733.5,0.02678451]
[1753045583179,1.2291,3734.4,3733.5,0.02678451]
[1753045583382,1.2291,3734.4,3733.6,4.185]
[1753045583585,1.2291,3734.4,3733.7,3.0]
[1753045583772,1.2291,3734.4,3733.6,4.185]
[1753045584083,1.2291,3734.4,3733.7,0.68634369]
[1753045584278,0.4714,3734.4,3733.7,0.68634369]
[1753045584483,0.4714,3734.4,3733.8,2.67817763]
[1753045584654,3.43522055,3734.8,3733.7,3.36462759]
[1753045584859,2.67731804,3735.1,3733.8,1.30488236]
[1753045584860,0.4714,3735.1,3733.8,1.30488236]
[1753045585051,0.4714,3735.1,3734.1,2.67796871]
[1753045585244,0.4714,3735.1,3734.2,6.86094595]
[1753045585602,0.4714,3735.1,3734.3,0.02677878]
[1753045585767,0.4714,3735.1,3734.3,3.02677878]
[1753045586154,0.4714,3735.1,3734.3,5.70464863]
[1753045586375,0.4714,3735.1,3734.4,0.98876486]
[1753045586684,0.4714,3735.1,3734.9,0.1336]
[1753045587292,0.4714,3735.0,3734.9,0.1336]
[1753045588377,0.4714,3735.0,3733.6,2.67832946]
[1753045588378,3.22744785,3734.9,3733.6,2.67832946]
[1753045588687,0.436,3734.8,3733.9,4.181]
[1753045589118,0.436,3734.8,3733.9,6.85913993]
[1753045589289,3.1135322,3734.8,3733.9,4.181]
[1753045589688,0.7643,3735.3,3734.4,2.6777675]
[1753045589903,2.67731349,3735.1,3734.5,4.189]
[1753045590075,0.436,3735.2,3734.6,4.189]
[1753045590812,0.436,3735.2,3734.6,7.28552928]
[1753045591309,0.436,3735.2,3734.6,4.6079]
[1753045591513,0.436,3735.2,3734.6,4.63467662]
[1753045592080,0.436,3735.2,3734.6,7.31232402]
[1753045592302,2.6769561,3735.6,3734.6,4.6079]
[1753045592303,0.55,3735.6,3734.6,4.6079]
[1753045592609,0.55,3735.6,3734.9,2.67743904]
[1753045592610,0.436,3735.6,3734.9,2.67743904]
[1753045592808,0.436,3735.6,3735.0,4.186]
[1753045593484,0.436,3735.6,3735.0,6.86336744]
[1753045593684,0.002,3735.7,3735.1,0.02677304]
[1753045593888,0.002,3735.7,3735.1,2.70404359]
[1753045594114,0.002,3735.7,3735.3,2.67710022]
[1753045594275,0.002,3735.7,3735.4,4.185]
[1753045595923,0.002,3735.7,3735.4,6.86204412]
[1753045596586,0.002,3735.7,3735.5,3.0]
[1753045598515,0.002,3735.7,3735.6,0.1336]
[1753045599422,3.11487448,3735.7,3735.6,4.3116]
[1753045599804,0.438,3735.7,3735.6,4.3116]